bitfinex-derivatives/quotes_BNBF0:USTF0_20251219
["timestamp","ask_amount","ask_price","bid_price","bid_amount"]
[1766119450082,1.19723444,836.34,835.69,2.655]
[1766119450281,0.88851853,836.35,835.69,2.655]
[1766119451382,0.88851853,836.36,835.69,2.655]
[1766119451582,1.19723455,836.35,835.69,2.655]
[1766119452280,0.88851853,836.36,835.69,2.655]
[1766119453082,0.88851853,836.36,835.24,1.18970075]
[1766119453283,0.88851853,836.36,835.23,1.18970075]
[1766119454283,0.88851853,836.37,835.23,1.18970075]
[1766119455787,0.88851853,836.37,835.24,2.296]
[1766119456586,0.88851853,836.37,835.24,15.33385562]
[1766119457282,0.88851853,836.43,835.28,1.18970075]
[1766119457486,0.88851853,836.43,835.29,1.18970075]
[1766119457783,0.88851853,836.44,835.3,1.18970075]
[1766119458287,0.88851853,836.44,835.31,1.18970075]
[1766119458486,0.88851853,836.46,835.33,1.18970075]
[1766119458683,0.88851853,836.52,835.39,1.18970075]
[1766119459982,0.88851853,836.54,835.41,1.18970075]
[1766119461287,0.88851853,836.53,835.42,1.18970075]
[1766119462283,0.88851853,836.54,835.43,1.18970075]
[1766119463284,0.88851853,836.53,835.43,1.18970075]
[1766119464287,0.88851853,836.53,835.28,1.76250693]
[1766119464288,0.88851853,836.53,835.44,1.18970075]
[1766119464989,2.08548792,836.52,835.43,1.18970075]
[1766119465189,0.88851853,836.37,835.29,1.18970075]
[1766119465490,0.88851853,836.38,835.3,1.18970075]
[1766119466288,0.88851853,836.38,835.24,15.33385562]
[1766119466289,0.88851853,836.44,835.36,1.18970075]
[1766119466588,0.88851853,836.43,835.37,1.18970075]
[1766119468089,1.77132319,836.73,835.24,15.33385562]
[1766119468090,0.88851853,836.44,835.38,1.18970075]
[1766119468390,2.08559779,836.43,835.38,1.18970075]
[1766119468584,0.88851853,836.43,835.38,1.18970075]
[1766119480201,0.20814393,836.17,835.38,1.18970075]
[1766119487309,0.20814393,836.17,835.32,1.18970075]
[1766119489311,0.20814393,836.17,835.31,1.18970075]
[1766119498314,0.20814393,836.17,835.29,1.18970075]
[1766119498514,0.20814393,836.17,835.27,1.18970075]
[1766119499014,0.20814393,836.17,835.28,1.18970075]
[1766119499214,0.20814393,836.17,835.27,1.18970075]
[1766119499615,0.20814393,836.17,835.3,1.18970075]
[1766119501615,0.20814393,836.17,835.31,1.18970075]
[1766119501816,0.20814393,836.17,835.34,1.18970075]
[1766119503821,0.20814393,836.17,835.38,1.18970075]
[1766119504317,0.88851853,836.45,835.41,1.18970075]
[1766119504520,0.20813024,836.28,835.41,1.18970075]
[1766119504715,9.19657849,836.28,835.41,1.18970075]
[1766119504920,8.98844825,836.28,835.52,1.18970075]
[1766119505122,0.20812713,836.38,835.55,1.18970075]
[1766119505622,0.20812713,836.38,835.58,1.18970075]
[1766119505826,0.20812713,836.38,835.59,1.18970075]
[1766119506021,0.20812713,836.38,835.65,1.18970075]
[1766119506322,0.88851853,836.76,835.7,1.18970075]
[1766119506524,0.20806677,836.54,835.7,1.18970075]
[1766119507222,0.20806677,836.54,835.68,1.18970075]
[1766119507918,0.20806677,836.54,835.69,1.18970075]
[1766119508219,0.20806677,836.54,835.67,1.18970075]
[1766119509123,0.20806677,836.54,835.66,1.18970075]
[1766119509524,0.20806677,836.54,835.7,1.18970075]
[1766119509724,0.20806677,836.54,835.71,1.18970075]
[1766119510221,0.20806677,836.54,835.24,15.33385562]
[1766119510222,0.20806677,836.54,835.7,1.18970075]
[1766119511222,0.20806677,836.54,835.69,1.18970075]
[1766119512025,0.20806677,836.54,835.71,1.18970075]
[1766119512226,0.20806677,836.54,835.7,1.18970075]
[1766119512522,0.20806677,836.54,835.75,1.18970075]
[1766119513121,0.20806677,836.54,835.73,1.18970075]
[1766119514227,0.20806677,836.54,835.71,1.18970075]
[1766119514628,0.20806677,836.54,835.7,1.18970075]
[1766119515232,0.20806677,836.54,835.69,1.18970075]
[1766119515934,0.20806677,836.54,835.7,2.647]
[1766119523542,0.20802946,836.64,835.7,2.647]
[1766119524640,0.20802946,836.64,835.7,3.83670075]
[1766119525641,0.20802946,836.64,835.7,2.647]
[1766119538655,14.09027705,837.15,835.71,1.18970075]
[1766119538854,0.20800708,836.75,835.71,1.18970075]
[1766119539253,0.20800708,836.75,835.7,3.83670075]
[1766119540756,0.20800708,836.75,835.7,2.647]
[1766119550862,0.20800708,836.75,835.5,1.18970075]
[1766119551364,0.20800708,836.75,835.51,1.18970075]
[1766119552467,0.20800708,836.75,835.5,1.18970075]
[1766119553067,0.20800708,836.75,835.45,1.18970075]
[1766119553263,0.20800708,836.75,835.46,1.18970075]
[1766119553462,0.20800708,836.75,835.49,1.18970075]
[1766119553866,0.20800708,836.75,835.48,1.18970075]
[1766119554263,0.20800708,836.75,835.42,1.18970075]
[1766119554569,0.20800708,836.75,835.49,1.96]
[1766119558375,0.88851853,836.71,835.49,1.96]
[1766119558572,0.88851853,836.67,835.49,1.96]
[1766119558770,1.19696917,836.66,835.49,1.96]
[1766119559174,0.88851853,836.63,835.49,1.96]
[1766119559371,0.88851853,836.61,835.49,1.96]
[1766119561078,1.19703378,836.6,835.49,1.96]
[1766119561476,0.88851853,836.69,835.49,1.96]
[1766119561979,0.20800708,836.75,835.49,1.96]
[1766119562785,0.20800708,836.75,835.49,3.14970075]
[1766119563286,0.20800708,836.75,835.51,1.18970075]
[1766119563585,0.20800708,836.75,835.55,1.18970075]
[1766119564183,0.20800708,836.75,835.57,1.18970075]
[1766119565986,0.20800708,836.75,835.59,1.18970075]
[1766119566285,0.20800708,836.75,835.62,1.18970075]
[1766119566488,0.20800708,836.75,835.68,1.18970075]
[1766119566689,0.20800708,836.75,835.69,1.18970075]
[1766119566888,0.20800708,836.75,835.68,1.18970075]
[1766119569287,0.20800708,836.75,835.69,1.18970075]
[1766119572189,0.20800708,836.75,835.68,1.18970075]
[1766119572389,0.20800708,836.75,835.69,1.18970075]
[1766119572886,0.20800708,836.75,835.7,2.324]
[1766119579195,0.20800708,836.75,835.7,3.51370075]
[1766119579497,0.20800708,836.75,835.73,1.18970075]
[1766119579695,0.20800708,836.75,835.74,1.18970075]
[1766119579996,0.20800708,836.75,835.73,1.18970075]
[1766119587801,0.20800708,836.75,835.88,1.18970075]
[1766119588397,0.20800708,836.75,835.87,1.18970075]
[1766119592400,0.20800708,836.75,835.86,1.18970075]
[1766119593204,0.20800708,836.75,835.88,1.18970075]
[1766119596304,0.20800708,836.75,835.87,1.18970075]
[1766119596706,0.20800708,836.75,835.88,1.18970075]
[1766119597909,14.09027705,837.15,835.91,1.18970075]
[1766119598209,0.2079847,836.86,836.01,1.18970075]
[1766119598409,0.2079847,836.86,836.02,1.18970075]
[1766119599404,0.2079847,836.86,835.7,2.324]
[1766119599405,0.2079847,836.86,836.01,1.18970075]
[1766119600110,0.2079847,836.86,835.95,1.18970075]
[1766119600405,0.2079847,836.86,835.92,1.18970075]
[1766119603407,0.2079847,836.86,835.91,1.18970075]
[1766119605313,0.2079847,836.86,835.9,1.18970075]
[1766119608215,0.2079847,836.86,835.89,1.18970075]
[1766119611414,0.2079847,836.86,835.88,1.18970075]
[1766119612112,0.2079847,836.86,835.88,14.44524515]
[1766119614014,0.2079847,836.86,835.88,13.2555444]
[1766119616217,0.2079847,836.86,835.89,1.887]
[1766119619823,0.2079847,836.86,835.93,1.18970075]
[1766119620226,0.2079847,836.86,835.99,1.18970075]
[1766119620420,0.2079847,836.86,836.05,1.18970075]
[1766119620724,0.2079847,836.86,836.08,1.18970075]
[1766119621125,0.2079847,836.86,836.07,1.18970075]
[1766119621326,0.88836154,837.38,836.11,1.18970075]
[1766119621527,0.20793499,837.04,836.19,1.18970075]
[1766119622121,0.20793499,837.04,835.89,1.887]
[1766119622122,0.20793499,837.04,836.18,1.18970075]
[1766119622426,0.20793499,837.04,836.25,1.18970075]
[1766119622729,0.20793499,837.04,836.24,1.18970075]
[1766119623223,0.20793499,837.04,836.22,1.18970075]
[1766119623423,0.20793499,837.04,836.23,1.18970075]
[1766119624028,0.20793499,837.04,836.15,1.18970075]
[1766119624225,0.20793499,837.04,835.92,1.18970075]
[1766119625325,0.20793499,837.04,835.93,1.18970075]
[1766119628032,0.20793499,837.04,835.95,1.18970075]
[1766119629133,0.20793499,837.04,835.96,1.18970075]
[1766119629337,0.20793499,837.04,836.0,1.18970075]
[1766119629538,0.20793499,837.04,836.01,1.18970075]
[1766119629933,0.20793499,837.04,836.02,1.18970075]
[1766119630138,0.20793499,837.04,836.06,1.18970075]
[1766119630539,0.20793499,837.04,836.07,1.18970075]
[1766119631139,0.20793499,837.04,836.06,1.18970075]
[1766119631341,0.20793499,837.04,836.07,1.18970075]
[1766119631940,0.20793499,837.04,836.1,1.18970075]
[1766119632137,0.20793499,837.04,836.13,1.18970075]
[1766119634141,0.20793499,837.04,836.08,1.18970075]
[1766119634336,0.20793499,837.04,836.07,1.18970075]
[1766119634537,0.20793499,837.04,836.05,1.18970075]
[1766119635242,0.20793499,837.04,836.01,1.18970075]
[1766119635443,0.20793499,837.04,836.0,1.18970075]
[1766119636241,0.20793499,837.04,836.01,1.18970075]
[1766119638343,0.20793499,837.04,835.89,1.887]
[1766119638344,0.20793499,837.04,836.02,1.18970075]
[1766119639948,0.20793499,837.04,835.99,1.18970075]
[1766119640248,0.20793499,837.04,835.95,1.18970075]
[1766119641245,0.20793499,837.04,835.92,1.18970075]
[1766119641647,0.20793499,837.04,835.89,1.887]
[1766119642052,0.88836154,837.03,835.89,1.887]
[1766119642356,0.88836154,836.95,835.89,1.887]
[1766119642651,1.1960546,836.94,835.89,1.887]
[1766119643854,0.88836154,836.92,835.89,1.887]
[1766119644055,1.1960546,836.91,835.89,1.887]
[1766119644355,0.88836154,836.89,835.89,1.887]
[1766119644554,1.1960546,836.88,835.89,1.887]
[1766119644750,2.08441614,836.88,835.89,1.887]
[1766119644950,1.1960546,836.87,835.89,1.887]
[1766119645355,0.88836154,836.88,835.89,1.887]
[1766119645656,0.88836154,836.85,835.89,1.887]
[1766119645856,1.19656245,836.84,835.89,1.887]
[1766119646051,0.88836154,836.81,835.89,1.887]
[1766119646254,1.19656245,836.8,835.89,1.887]
[1766119647150,0.88836154,836.82,835.89,1.887]
[1766119647354,1.1966797,836.81,835.89,1.887]
[1766119648160,0.88836154,836.83,835.89,1.887]
[1766119648358,1.19667923,836.82,835.89,1.887]
[1766119649157,2.08504077,836.82,835.89,1.887]
[1766119649456,1.19667923,836.81,835.89,1.887]
[1766119649660,0.88836154,836.75,835.89,1.887]
[1766119649859,1.19680776,836.74,835.89,1.887]
[1766119650262,0.88836154,836.77,835.89,1.887]
[1766119650460,1.19680776,836.76,835.89,1.887]
[1766119651263,0.88836154,836.78,835.89,1.887]
[1766119651461,1.19680802,836.77,835.89,1.887]
[1766119652163,0.88836154,836.79,835.89,1.887]
[1766119652865,0.20793499,837.04,835.89,1.887]
[1766119652866,2.08517357,836.78,835.89,1.887]
[1766119653165,0.88836154,836.8,835.89,1.887]
[1766119653466,0.88836154,836.75,835.89,1.887]
[1766119653662,1.19682247,836.74,835.89,1.887]
[1766119653861,2.08518401,836.74,835.89,1.887]
[1766119654161,0.88836154,836.75,835.89,1.887]
[1766119654366,0.88836154,836.72,835.89,1.887]
[1766119654662,0.88836154,836.77,835.89,1.887]
[1766119655061,0.88836154,836.84,835.89,1.887]
[1766119655262,0.88836154,836.85,835.89,1.887]
[1766119655461,1.19678216,836.84,835.89,1.887]
[1766119656160,0.88836154,836.86,835.89,1.887]
[1766119656362,0.88836154,836.92,835.89,1.887]
[1766119657166,0.88836154,836.93,835.89,1.887]
[1766119657462,1.19669255,836.92,835.89,1.887]
[1766119658165,0.88836154,836.93,835.89,1.887]
[1766119658672,0.88836154,836.9,835.89,1.887]
[1766119658870,1.19669333,836.89,835.89,1.887]
[1766119659170,0.88836154,836.87,835.88,13.2555444]
[1766119659371,1.19669333,836.86,835.88,13.2555444]
[1766119659867,2.08505487,836.86,835.88,13.2555444]
[1766119660166,0.88836154,836.81,835.88,13.2555444]
[1766119660370,0.88836154,836.82,835.88,13.2555444]
[1766119660570,1.1968724,836.81,835.88,13.2555444]
[1766119660965,2.08523394,836.81,835.3,1.18970075]
[1766119661271,0.88836154,836.82,835.29,1.18970075]
[1766119661570,1.19688654,836.81,835.29,1.18970075]
[1766119662066,1.19688654,836.81,835.18,0.20811655]
[1766119662067,1.19688654,836.81,835.28,1.18970075]
[1766119662266,0.88836154,836.82,835.28,1.18970075]
[1766119663172,0.88836154,836.83,835.27,1.18970075]
[1766119663969,0.88836154,836.83,835.29,1.664]
[1766119664473,0.88836154,836.88,835.31,1.18970075]
[1766119665069,0.88836154,836.89,835.31,1.18970075]
[1766119665370,1.19681461,836.88,835.3,1.18970075]
[1766119667273,0.88836154,836.89,835.29,15.96195367]
[1766119668367,0.88836154,836.9,835.29,15.96195367]
[1766119668571,1.19681445,836.89,835.29,15.96195367]
[1766119669374,1.19681445,836.89,835.29,14.77225292]
[1766119670076,0.88836154,836.96,835.34,1.18970075]
[1766119670375,0.88836154,837.03,835.41,1.18970075]
[1766119670675,1.19663212,837.02,835.41,1.18970075]
[1766119670876,1.09444085,837.04,835.43,1.18970075]
[1766119671271,0.20793499,837.04,835.51,1.18970075]
[1766119671477,0.20793499,837.04,835.52,1.18970075]
[1766119672072,0.20793499,837.04,835.53,1.18970075]
[1766119672278,0.20793499,837.04,835.54,1.18970075]
[1766119672978,0.20793499,837.04,835.59,1.18970075]
[1766119673179,0.20793499,837.04,835.64,1.18970075]
[1766119676081,0.20793499,837.04,835.67,1.18970075]
[1766119676277,0.20793499,837.04,835.69,1.18970075]
[1766119680789,0.20793499,837.04,835.66,1.18970075]
[1766119682289,0.20793499,837.04,835.67,1.18970075]
[1766119682585,0.20793499,837.04,835.68,1.18970075]
[1766119683189,0.20793499,837.04,835.53,1.76250693]
[1766119683190,0.20793499,837.04,835.69,1.18970075]
[1766119683591,0.20793499,837.04,835.72,1.18970075]
[1766119683786,0.20793499,837.04,835.29,13.10825292]
[1766119683787,0.20793499,837.04,835.75,1.18970075]
[1766119684293,0.20793499,837.04,835.76,1.18970075]
[1766119684493,0.20793499,837.04,835.76,3.40670075]
[1766119684691,0.20793499,837.04,835.77,1.18970075]
[1766119690095,0.20793499,837.04,835.78,1.18970075]
[1766119692196,0.20793499,837.04,835.79,1.18970075]
[1766119692996,0.20793499,837.04,835.77,1.18970075]
[1766119693295,0.20793499,837.04,835.76,2.217]
[1766119693296,0.20793499,837.04,835.78,1.18970075]
[1766119694193,0.20793499,837.04,835.76,3.40670075]
[1766119694496,0.20793499,837.04,835.77,1.18970075]
[1766119697294,0.20793499,837.04,835.78,1.18970075]
[1766119698297,0.20793499,837.04,835.79,1.18970075]
[1766119698594,0.20793499,837.04,835.88,1.18970075]
[1766119702102,0.20793499,837.04,835.87,1.18970075]
[1766119703103,0.20793499,837.04,835.88,2.023]
[1766119711503,1.40441315,837.04,835.88,2.023]
[1766119711707,0.20793499,837.04,835.88,2.023]
[1766119711904,1.40441315,837.04,835.88,2.023]
[1766119712109,0.20793499,837.04,835.88,2.023]
[1766119712311,1.40441315,837.04,835.88,2.023]
[1766119712610,1.09442873,837.04,835.88,2.023]
[1766119713205,2.08298496,837.03,835.88,2.023]
[1766119713409,1.19649122,837.02,835.88,2.023]
[1766119713810,0.88649374,837.03,835.88,2.023]
[1766119714108,2.08298486,837.02,835.88,2.023]
[1766119714308,0.88649374,837.02,835.88,2.023]
[1766119714911,1.19649528,837.01,835.88,2.023]
[1766119715112,0.88649374,836.93,835.88,2.023]
[1766119715712,1.19661448,836.92,835.88,2.023]
[1766119715911,0.88649374,836.93,835.88,2.023]
[1766119716208,1.19662802,836.92,835.88,2.023]
[1766119717407,2.08312176,836.92,835.88,2.023]
[1766119717614,0.88649374,836.92,835.88,2.023]
[1766119718310,0.88642441,836.92,835.88,2.023]
[1766119719013,1.19662844,836.91,835.88,2.023]
[1766119719210,0.88642441,836.86,835.88,2.023]
[1766119720116,2.08313658,836.85,835.88,2.023]
[1766119720315,0.88642441,836.85,835.88,2.023]
[1766119720516,0.88642441,836.86,835.88,2.023]
[1766119720816,1.19671222,836.85,835.88,2.023]
[1766119721310,2.08313663,836.85,835.88,2.023]
[1766119721515,0.88642441,836.85,835.88,2.023]
[1766119722212,2.08313705,836.84,835.88,2.023]
[1766119722411,0.88642441,836.85,835.88,2.023]
[1766119722613,1.19671227,836.84,835.88,2.023]
[1766119723218,2.08313668,836.84,835.88,2.023]
[1766119723418,0.88642441,836.84,835.88,2.023]
[1766119724314,1.19671232,836.83,835.88,2.023]
[1766119724518,0.88642441,836.91,835.88,2.023]
[1766119724715,0.20793499,837.04,835.88,2.023]
[1766119724716,0.88642441,836.92,835.88,2.023]
[1766119725015,0.88642441,836.98,835.88,2.023]
[1766119725219,2.08293536,836.97,835.88,2.023]
[1766119725419,0.88642441,836.97,835.88,2.023]
[1766119726114,2.08293531,836.96,835.88,2.023]
[1766119726318,0.88642441,836.96,835.88,2.023]
[1766119727119,1.1965109,836.95,835.88,2.023]
[1766119727518,2.08293531,836.95,835.88,2.023]
[1766119727716,0.88642441,836.95,835.88,2.023]
[1766119728719,0.88642441,837.03,835.88,2.023]
[1766119728920,1.19639561,837.02,835.88,2.023]
[1766119729122,2.08282002,837.02,835.88,2.023]
[1766119729421,1.19639561,837.01,835.88,2.023]
[1766119730221,2.08282002,837.01,835.88,2.023]
[1766119730418,0.88642441,837.01,835.88,2.023]
[1766119731021,0.88642441,837.01,835.78,1.18970075]
[1766119733624,0.88642441,837.01,835.79,2.17]
[1766119736327,1.19639536,837.0,835.79,2.17]
[1766119736628,2.08281977,837.0,835.79,2.17]
[1766119736925,0.20793499,837.04,835.84,1.18970075]
[1766119741230,0.20793499,837.04,835.85,1.18970075]
[1766119747434,0.20793499,837.04,835.86,1.18970075]
[1766119748336,1.0943594,837.04,835.83,1.18970075]
[1766119748533,0.88642441,837.02,835.81,1.18970075]
[1766119750235,1.19636331,837.01,835.81,1.18970075]
[1766119750535,2.08278772,837.01,835.82,1.18970075]
[1766119750731,0.88642441,837.01,835.82,1.18970075]
[1766119753937,0.88642441,837.03,835.84,1.18970075]
[1766119754133,1.19633731,837.02,835.85,1.18970075]
[1766119754337,0.88642441,837.03,835.85,1.18970075]
[1766119759241,1.19632977,837.02,835.85,1.18970075]
[1766119759544,2.08275418,837.02,835.86,1.18970075]
[1766119759844,0.88642441,837.02,835.86,1.18970075]
[1766119761241,1.19632972,837.01,835.86,1.18970075]
[1766119761446,2.08275413,837.01,835.87,1.18970075]
[1766119761648,0.88642441,837.01,835.87,1.18970075]
[1766119763250,1.19632987,837.0,835.87,1.18970075]
[1766119763450,2.08275428,837.0,835.88,1.18970075]
[1766119763652,0.88642441,836.98,835.86,1.18970075]
[1766119764053,2.08280547,836.97,835.84,1.18970075]
[1766119764253,0.88642441,836.95,835.82,1.18970075]
[1766119764449,1.19638106,836.94,835.82,1.18970075]
[1766119765253,2.08280547,836.94,835.82,1.18970075]
[1766119765456,1.19641982,836.93,835.82,1.18970075]
[1766119765953,2.08284423,836.93,835.81,1.18970075]
[1766119766159,0.88642441,836.93,835.81,1.18970075]
[1766119766454,0.88642441,836.9,835.79,2.17]
[1766119766858,0.88642441,836.88,835.79,2.17]
[1766119768255,0.88642441,836.83,835.79,2.17]
[1766119768660,0.88642441,836.77,835.79,2.17]
[1766119769068,1.19669397,836.76,835.79,2.17]
[1766119769260,0.88642441,836.75,835.79,2.17]
[1766119769560,2.0831317,836.74,835.79,2.17]
[1766119769760,0.88642441,836.74,835.79,2.17]
[1766119769960,0.88642441,836.69,835.79,2.17]
[1766119770358,0.88642441,836.7,835.79,2.17]
[1766119771857,0.88642441,836.71,835.79,2.17]
[1766119772161,0.88642441,836.81,835.79,2.17]
[1766119772361,0.88642441,836.94,835.79,2.17]
[1766119774162,0.88642441,837.01,835.85,1.18970075]
[1766119774462,0.88642441,837.02,835.86,1.18970075]
[1766119776263,1.19633009,837.01,835.86,1.18970075]
[1766119777362,2.0827545,837.01,835.86,1.18970075]
[1766119777659,0.88642441,837.01,835.86,1.18970075]
[1766119779162,0.88642441,837.01,835.87,2.343]
[1766119779357,0.88642441,837.01,835.87,3.53270075]
[1766119779558,0.88642441,837.03,835.9,1.18970075]
[1766119780063,0.20793499,837.04,835.91,1.18970075]
[1766119780264,0.20793499,837.04,835.95,1.18970075]
[1766119780465,0.20793499,837.04,835.96,1.18970075]
[1766119780965,0.20793499,837.04,836.1,1.18970075]
[1766119781164,0.20793499,837.04,836.17,1.18970075]
[1766119781363,0.20793499,837.04,836.16,1.18970075]
[1766119783466,0.20793499,837.04,836.15,1.18970075]
[1766119783765,0.20793499,837.04,836.16,1.18970075]
[1766119783962,0.20793499,837.04,836.2,1.18970075]
[1766119784166,0.20793499,837.04,836.24,1.18970075]
[1766119784460,0.20793499,837.04,836.22,1.18970075]
[1766119785461,0.20793499,837.04,836.21,1.18970075]
[1766119786465,0.20793499,837.04,836.2,1.18970075]
[1766119787267,0.20793499,837.04,836.19,1.18970075]
[1766119787567,0.20793499,837.04,836.18,1.18970075]
[1766119788466,0.20793499,837.04,836.17,1.18970075]
[1766119789464,0.20793499,837.04,836.16,1.18970075]
[1766119790368,0.20793499,837.04,836.15,1.18970075]
[1766119791569,0.20793499,837.04,836.14,1.18970075]
[1766119792769,0.20793499,837.04,836.13,1.18970075]
[1766119793268,0.20793499,837.04,836.12,1.18970075]
[1766119795373,0.20793499,837.04,836.07,1.18970075]
[1766119797375,0.20793499,837.04,836.06,1.18970075]
[1766119797670,0.20793499,837.04,836.05,1.18970075]
[1766119799477,0.20793499,837.04,836.04,1.18970075]
[1766119800378,0.20793499,837.04,836.01,1.18970075]
[1766119800874,0.20793499,837.04,836.02,1.18970075]
[1766119801181,0.20793499,837.04,836.1,1.18970075]
[1766119801878,55.98875246,837.56,836.1,1.18970075]
[1766119802082,55.98875246,837.56,835.95,1.76250693]
[1766119802083,55.09938182,837.56,836.21,1.18970075]
[1766119802283,0.20793188,837.2,836.2,1.18970075]
[1766119803185,0.20793188,837.2,836.19,1.18970075]
[1766119804288,0.20793188,837.2,836.18,1.18970075]
[1766119806191,0.20793188,837.2,836.17,1.18970075]
[1766119806689,0.20793188,837.2,836.16,1.18970075]
[1766119807193,0.20793188,837.2,836.11,1.18970075]
[1766119807391,0.20793188,837.2,836.1,1.18970075]
[1766119808493,0.20793188,837.2,836.14,1.18970075]
[1766119810090,0.20793188,837.2,836.15,1.18970075]
[1766119811394,0.20793188,837.2,836.14,1.18970075]
[1766119814298,0.20793188,837.2,836.13,1.18970075]
[1766119820502,0.20793188,837.2,835.87,2.343]
[1766119820503,0.20793188,837.2,836.19,1.18970075]
[1766119821606,0.20793188,837.2,836.2,1.18970075]
[1766119822206,0.20793188,837.2,836.19,1.18970075]
[1766119824506,0.20793188,837.2,836.2,1.18970075]
[1766119826309,0.20793188,837.2,836.21,1.18970075]
[1766119826510,55.09938182,837.56,836.32,1.18970075]
[1766119826710,0.20787351,837.37,836.32,1.18970075]
[1766119827311,0.20787351,837.37,836.31,1.18970075]
[1766119827511,0.20787351,837.37,836.32,1.18970075]
[1766119828308,0.20787351,837.37,836.43,1.18970075]
[1766119828708,0.8848169,838.01,836.45,1.18970075]
[1766119828908,0.20782199,837.46,836.45,1.18970075]
[1766119829107,1.19520906,838.0,836.45,1.18970075]
[1766119829308,1.19520906,837.99,836.46,1.18970075]
[1766119829513,0.20781454,837.5,836.46,1.18970075]
[1766119829708,8.93771117,837.99,836.46,1.18970075]
[1766119830309,2.08002596,837.98,836.48,1.18970075]
[1766119830512,0.8848169,837.98,836.48,1.18970075]
[1766119830912,0.20781392,837.61,836.48,1.18970075]
[1766119831313,0.20781392,837.61,836.5,1.18970075]
[1766119832216,0.20781392,837.61,836.49,1.18970075]
[1766119832517,0.20781392,837.61,836.51,1.18970075]
[1766119833213,0.20781392,837.61,836.5,1.18970075]
[1766119833519,0.20781392,837.61,836.51,1.18970075]
[1766119834320,0.20781392,837.61,836.52,1.18970075]
[1766119835219,0.20781392,837.61,836.51,1.18970075]
[1766119835418,0.20781392,837.61,836.52,1.18970075]
[1766119836419,0.20781392,837.61,836.48,1.18970075]
[1766119836621,0.20781392,837.61,836.45,1.18970075]
[1766119837319,0.20781392,837.61,836.46,1.18970075]
[1766119838320,0.20781392,837.61,836.47,1.18970075]
[1766119839321,0.20781392,837.61,836.49,1.18970075]
[1766119840420,0.20781392,837.61,836.5,1.18970075]
[1766119842119,0.20781392,837.61,836.46,1.18970075]
[1766119842321,0.20781392,837.61,836.44,1.891]
[1766119842525,0.8848169,837.6,836.44,1.891]
[1766119842720,1.19533077,837.59,836.44,1.891]
[1766119843123,2.08014767,837.59,836.44,1.891]
[1766119843319,2.08014767,837.58,836.44,1.891]
[1766119843524,2.08044687,837.57,836.44,1.891]
[1766119843720,0.8848169,837.57,836.44,1.891]
[1766119843923,0.8848169,837.51,836.44,1.891]
[1766119844124,1.19572001,837.5,836.44,1.891]
[1766119844425,0.8848169,837.43,836.44,1.891]
[1766119844825,0.8848169,837.41,836.44,1.891]
[1766119845224,0.8848169,837.42,836.44,1.891]
[1766119845521,1.1958557,837.41,836.44,1.891]
[1766119845721,0.8848169,837.49,836.44,1.891]
[1766119845921,1.19575239,837.48,836.44,1.891]
[1766119846625,0.8848169,837.5,836.44,1.891]
[1766119846821,1.19573934,837.49,836.44,1.891]
[1766119848226,0.8848169,837.52,836.44,1.891]
[1766119849226,1.19570084,837.51,836.44,1.891]
[1766119850728,0.8848169,837.55,836.44,1.891]
[1766119850926,1.19566234,837.54,836.44,1.891]
[1766119851323,2.08047924,837.54,836.44,1.891]
[1766119851524,0.8848169,837.54,836.44,1.891]
[1766119853230,1.19566229,837.53,836.44,1.891]
[1766119853525,0.8848169,837.54,836.44,1.891]
[1766119854126,1.19566229,837.53,836.44,1.891]
[1766119854732,1.19566229,837.53,836.29,1.18970075]
[1766119855027,2.08047919,837.53,836.28,1.18970075]
[1766119855231,1.19566229,837.52,836.28,1.18970075]
[1766119856228,0.8848169,837.53,836.28,1.18970075]
[1766119856434,0.8848169,837.54,836.3,1.18970075]
[1766119856632,1.19565512,837.53,836.3,1.18970075]
[1766119858232,1.19565512,837.53,836.31,2.18]
[1766119858432,1.19565512,837.53,836.31,3.36970075]
[1766119859335,2.08047202,837.53,836.31,3.36970075]
[1766119859536,0.8848169,837.53,836.31,3.36970075]
[1766119859930,1.19564899,837.52,836.31,3.36970075]
[1766119861234,1.19564899,837.52,836.32,1.18970075]
[1766119862137,1.19564899,837.52,836.31,2.18]
[1766119862138,0.8848169,837.45,836.31,2.18]
[1766119863238,0.8848169,837.46,836.31,2.18]
[1766119863538,1.19575872,837.45,836.31,2.18]
[1766119863937,0.8848169,837.46,836.31,2.18]
[1766119864141,0.8848169,837.53,836.31,3.36970075]
[1766119867942,0.8848169,837.46,836.31,2.18]
[1766119868144,1.19575238,837.45,836.31,2.18]
[1766119868440,0.8848169,837.39,836.31,2.18]
[1766119868643,1.19575238,837.38,836.31,2.18]
[1766119869242,0.8848169,837.39,836.31,2.18]